bitfinex/quotes_BTCUSD_20250628
["timestamp","ask_amount","ask_price","bid_price","bid_amount"]
[1751083969662,6.98785492,107350.0,107340.0,8.20182146]
[1751083969663,7.17589492,107350.0,107340.0,8.20182146]
[1751083969865,7.17589492,107350.0,107340.0,8.17402146]
[1751083970043,7.19139492,107350.0,107340.0,8.17402146]
[1751083970243,7.284155,107350.0,107340.0,8.17402146]
[1751083970678,7.25621073,107350.0,107340.0,8.12902146]
[1751083971126,7.25621073,107350.0,107340.0,8.11002146]
[1751083973959,7.24675214,107350.0,107340.0,3.31394]
[1751083974414,7.24675214,107350.0,107340.0,3.26734451]
[1751083974738,7.49656379,107350.0,107340.0,3.26734451]
[1751083975347,7.49656379,107350.0,107340.0,3.24484451]
[1751083976620,1.94656379,107350.0,107340.0,3.24484451]
[1751083976839,7.49656379,107350.0,107340.0,3.24484451]
[1751083980069,7.24675214,107350.0,107340.0,3.24484451]
[1751083980319,7.24675214,107350.0,107340.0,3.21473452]
[1751083980588,7.26235214,107350.0,107340.0,3.12154354]
[1751083980840,7.26235214,107350.0,107340.0,3.02835256]
[1751083981058,7.51216379,107350.0,107340.0,3.00599256]
[1751083981299,7.26235214,107350.0,107340.0,2.95939707]
[1751083981507,7.26235214,107350.0,107340.0,2.92123707]
[1751083981683,7.26235214,107350.0,107340.0,2.90210707]
[1751083983623,7.26235214,107350.0,107340.0,2.85551158]
[1751083983944,7.54010806,107350.0,107340.0,2.82802158]
[1751083984142,7.54010806,107350.0,107340.0,2.81678158]
[1751083984350,7.54010806,107350.0,107340.0,2.80308158]
[1751083984589,7.54010806,107350.0,107340.0,2.79217158]
[1751083984796,7.54010806,107350.0,107340.0,2.77874158]
[1751083984970,7.29029641,107350.0,107340.0,2.73214609]
[1751083985198,7.32755544,107350.0,107340.0,2.71433609]
[1751083985923,7.57736709,107350.0,107340.0,2.71433609]
[1751083986185,7.54942282,107350.0,107340.0,2.6984661]
[1751083987065,7.54942282,107350.0,107340.0,2.65187061]
[1751083987192,7.54942282,107350.0,107340.0,2.60527512]
[1751083987561,7.54942282,107350.0,107340.0,2.58057512]
[1751083987746,7.54942282,107350.0,107340.0,2.54788513]
[1751083987949,7.54942282,107350.0,107340.0,2.52910514]
[1751083989559,7.54942282,107350.0,107340.0,2.48647514]
[1751083989960,7.54942282,107350.0,107340.0,2.46209514]
[1751083991288,7.53382282,107350.0,107340.0,2.46209514]
[1751083993365,7.54902282,107350.0,107340.0,2.41549834]
[1751083994209,7.53382282,107350.0,107340.0,2.41549834]
[1751083996303,7.53382282,107350.0,107340.0,2.36890154]
[1751083996505,7.53378282,107350.0,107340.0,2.30634474]
[1751083996710,7.53378282,107350.0,107340.0,2.25974794]
[1751083996916,1.98378282,107350.0,107340.0,2.25974794]
[1751083997122,7.53378282,107350.0,107340.0,2.25974794]
[1751083997536,7.53378282,107350.0,107340.0,2.21543794]
[1751083997744,7.53378282,107350.0,107340.0,2.17880794]
[1751083998731,7.53378282,107350.0,107340.0,2.13221114]
[1751083999170,7.53378282,107350.0,107340.0,2.10899114]
[1751083999367,7.53378282,107350.0,107340.0,2.08467114]
[1751083999770,7.53378282,107350.0,107340.0,2.05448114]
[1751084000104,7.53378282,107350.0,107340.0,2.02900114]
[1751084000334,7.53378282,107350.0,107340.0,1.98240434]
[1751084000878,7.54998282,107350.0,107340.0,1.98240434]
[1751084001086,7.54998282,107350.0,107340.0,1.93580754]
[1751084001321,7.54998282,107350.0,107340.0,1.88921074]
[1751084001706,7.54998282,107350.0,107340.0,1.88351074]
[1751084001907,7.54998282,107350.0,107340.0,1.86371074]
[1751084002313,7.54998282,107350.0,107340.0,1.81711394]
[1751084002579,7.54998282,107350.0,107340.0,1.77051714]
[1751084003072,7.54998282,107350.0,107340.0,1.72991714]
[1751084003283,7.54998282,107350.0,107340.0,1.72350714]
[1751084005571,7.56434771,107350.0,107340.0,1.72350714]
[1751084006367,7.56434771,107350.0,107340.0,1.67691034]
[1751084006572,7.56434771,107350.0,107340.0,1.63031354]
[1751084006912,7.56434771,107350.0,107340.0,1.61175354]
[1751084007311,7.56434771,107350.0,107340.0,1.56515674]
[1751084007509,7.56434771,107350.0,107340.0,1.51855994]
[1751084007819,7.56561787,107350.0,107340.0,1.51855994]
[1751084008386,7.56561787,107350.0,107340.0,1.47196314]
[1751084008583,7.37761787,107350.0,107340.0,1.47196314]
[1751084009033,7.56561787,107350.0,107340.0,1.47196314]
[1751084009208,2.01561787,107350.0,107340.0,1.47196314]
[1751084009414,7.37761787,107350.0,107340.0,1.47196314]
[1751084009962,7.36211787,107350.0,107340.0,1.47196314]
[1751084010143,7.45735779,107350.0,107340.0,1.50166314]
[1751084012747,7.51324634,107350.0,107340.0,1.50166314]
[1751084016437,7.47598731,107350.0,107340.0,1.50166314]
[1751084018363,7.4945666,107350.0,107340.0,1.50166314]
[1751084019487,7.58732668,107350.0,107340.0,1.50166314]
[1751084020699,2.03732668,107350.0,107340.0,1.50166314]
[1751084020902,7.58732668,107350.0,107340.0,1.50166314]
[1751084022695,7.58732668,107350.0,107340.0,1.47196314]
[1751084022909,7.5983613,107350.0,107340.0,1.42696314]
[1751084023116,7.5687613,107350.0,107340.0,1.42696314]
[1751084023322,7.56876244,107350.0,107340.0,1.42696314]
[1751084028605,7.47600236,107350.0,107340.0,1.45796314]
[1751084030821,7.28800236,107350.0,107340.0,1.45796314]
[1751084031034,7.47600236,107350.0,107340.0,1.45796314]
[1751084032878,1.94456774,107350.0,107340.0,1.45796314]
[1751084033122,7.49456774,107350.0,107340.0,1.45796314]
[1751084033320,7.58728782,107350.0,107340.0,1.45796314]
[1751084035039,7.61598782,107350.0,107340.0,1.42696314]
[1751084035247,7.58728782,107350.0,107340.0,1.42696314]
[1751084037748,7.49452774,107350.0,107340.0,1.42696314]
[1751084039354,7.44452774,107350.0,107340.0,1.45766314]
[1751084039577,7.49452774,107350.0,107340.0,1.48796314]
[1751084042978,7.49452774,107350.0,107340.0,1.45766314]
[1751084050640,1.94452774,107350.0,107340.0,1.45766314]
[1751084050774,7.49452774,107350.0,107340.0,1.45766314]
[1751084052598,1.94452774,107350.0,107340.0,1.45766314]
[1751084052776,7.49452774,107350.0,107340.0,1.45766314]
[1751084054296,7.58728782,107350.0,107340.0,1.45766314]
[1751084055442,2.03728782,107350.0,107340.0,1.45766314]
[1751084055616,7.58728782,107350.0,107340.0,1.45766314]
[1751084056782,2.03728782,107350.0,107340.0,1.45766314]
[1751084056907,7.58728782,107350.0,107340.0,1.45766314]
[1751084066674,7.45733898,107350.0,107340.0,1.1830646]
[1751084070067,7.45733898,107350.0,107340.0,1.1523646]
[1751084072887,7.45733898,107350.0,107340.0,1.15186126]
[1751084074287,7.45734068,107350.0,107340.0,1.15186126]
[1751084075542,7.26938068,107350.0,107340.0,1.15186126]
[1751084075732,7.45734068,107350.0,107340.0,1.15186126]
[1751084076674,7.49452944,107350.0,107340.0,1.15186126]
[1751084078899,7.58728952,107350.0,107340.0,1.15186126]
[1751084095697,2.03728952,107350.0,107340.0,1.15186126]
[1751084095878,7.58728952,107350.0,107340.0,1.15186126]
[1751084099289,7.49452944,107350.0,107340.0,1.15186126]
[1751084100500,7.47217402,107350.0,107340.0,1.15186126]
[1751084100950,1.84770618,107350.0,107340.0,1.15186126]
[1751084101169,7.39770618,107350.0,107340.0,1.15186126]
[1751084102822,7.39770618,107350.0,107340.0,1.18466126]
[1751084109158,7.49046626,107350.0,107340.0,1.18466126]
[1751084112205,1.94046626,107350.0,107340.0,1.18466126]
[1751084112409,7.39770618,107350.0,107340.0,1.18466126]
[1751084115362,1.84770618,107350.0,107340.0,1.18466126]
[1751084115591,7.39770618,107350.0,107340.0,1.18466126]
[1751084116580,1.84770618,107350.0,107340.0,1.18466126]
[1751084116721,7.39770618,107350.0,107340.0,1.18466126]
[1751084118098,7.49046626,107350.0,107340.0,1.18466126]
[1751084123276,7.49046626,107350.0,107340.0,1.15186126]
[1751084124406,1.94046626,107350.0,107340.0,1.15186126]
[1751084124607,7.49046626,107350.0,107340.0,1.12936126]
[1751084124809,7.49046626,107350.0,107340.0,1.08390126]
[1751084125243,7.49046626,107350.0,107340.0,1.03730446]
[1751084125453,7.52116626,107350.0,107340.0,0.99070766]
[1751084125785,7.52116626,107350.0,107340.0,0.94411086]
[1751084126145,7.52116626,107350.0,107340.0,0.91058087]
[1751084126352,7.52116626,107350.0,107340.0,0.58904932]
[1751084126774,7.52116626,107350.0,107340.0,0.51465371]
[1751084127419,7.52116626,107350.0,107340.0,0.49615371]
[1751084127572,7.52116626,107350.0,107340.0,0.46564371]
[1751084127778,7.55206626,107350.0,107340.0,0.46564371]
[1751084128407,7.77574626,107350.0,107340.0,0.46564371]
[1751084129349,6.35951571,107330.0,107320.0,0.0638]
[1751084129555,0.5856763,107320.0,107310.0,0.0307]
[1751084129756,7.15169441,107320.0,107310.0,0.0307]
[1751084129956,7.17968541,107320.0,107310.0,0.0307]
[1751084130759,7.19422626,107320.0,107310.0,0.0307]
[1751084130958,6.13569454,107310.0,107300.0,0.0327]
[1751084131134,6.939981,107310.0,107300.0,0.0327]
[1751084131526,6.967974,107310.0,107300.0,0.0327]
[1751084132153,6.967974,107310.0,107300.0,0.03274587]
[1751084132607,7.3833265,107310.0,107300.0,0.06464587]
[1751084132804,7.4333265,107310.0,107300.0,0.00304587]
[1751084133164,7.4343265,107310.0,107300.0,0.00304587]
[1751084133371,7.18451485,107310.0,107300.0,0.00304587]
[1751084133757,7.4343265,107310.0,107300.0,0.00304587]
[1751084133965,7.52708658,107310.0,107300.0,0.00304587]
[1751084134372,7.27727493,107310.0,107300.0,0.00304587]
[1751084135237,7.52708658,107310.0,107300.0,0.00304587]
[1751084135894,7.27727493,107310.0,107300.0,0.00304587]
[1751084136108,7.34727493,107310.0,107300.0,0.00304587]
[1751084138367,7.59708658,107310.0,107300.0,0.00304587]
[1751084138566,7.57961642,107310.0,107300.0,0.00304587]
[1751084138967,7.59704652,107310.0,107300.0,0.00304587]
[1751084139875,7.34723487,107310.0,107300.0,0.00304587]
[1751084140883,7.32980477,107310.0,107300.0,0.00304587]
[1751084141087,7.36100477,107310.0,107300.0,0.00304587]
[1751084143606,7.61081642,107310.0,107300.0,0.00304587]
[1751084143812,6.89378147,107310.0,107300.0,0.00304587]
[1751084144054,7.64321642,107310.0,107300.0,0.00304587]
[1751084144631,7.39340477,107310.0,107300.0,0.00304587]
[1751084145815,7.64321642,107310.0,107300.0,0.00304587]
[1751084146325,7.66712203,107310.0,107300.0,0.00304587]
[1751084146513,7.67198929,107310.0,107300.0,0.00304587]
[1751084146732,7.67398929,107310.0,107300.0,0.00304587]
[1751084148654,7.67298929,107310.0,107300.0,0.00204587]
[1751084148930,7.67498929,107310.0,107300.0,0.00304587]
[1751084152782,7.65008368,107310.0,107300.0,0.00304587]
[1751084156377,2.10008368,107310.0,107300.0,0.00304587]
[1751084156605,7.65008368,107310.0,107300.0,0.00304587]
[1751084165685,0.65025362,107300.0,107290.0,0.0004]
[1751084165899,7.47848489,107300.0,107290.0,0.0318]
[1751084166173,7.50082221,107300.0,107290.0,0.0318]
[1751084166369,7.52882121,107300.0,107290.0,0.0318]
[1751084167109,7.52882121,107300.0,107290.0,0.0625]
[1751084167316,7.52982121,107300.0,107290.0,0.0635]
[1751084167471,7.52982121,107300.0,107290.0,0.0328]
[1751084167673,7.52982121,107300.0,107290.0,0.0635]
[1751084168132,7.56402121,107300.0,107290.0,0.0014]
[1751084168342,7.60210121,107300.0,107290.0,0.0014]
[1751084168947,7.60343556,107300.0,107290.0,0.0014]
[1751084169371,7.60543556,107300.0,107290.0,0.0014]
[1751084170415,7.60443556,107300.0,107290.0,0.0004]
[1751084170832,7.60743556,107300.0,107290.0,0.0014]
[1751084171235,7.55159224,107300.0,107290.0,0.0014]
[1751084171924,7.55160119,107300.0,107290.0,0.0014]
[1751084174005,0.44573101,107290.0,107280.0,0.0653]
[1751084174221,7.17763533,107290.0,107280.0,0.0653]
[1751084174441,7.1999816,107290.0,107280.0,0.0653]
[1751084174644,7.2279816,107290.0,107280.0,0.0653]
[1751084175052,7.2289816,107290.0,107280.0,0.0653]
[1751084175253,7.22716435,107290.0,107280.0,0.0653]
[1751084175454,7.22816435,107290.0,107280.0,0.0663]
[1751084176556,7.25648511,107290.0,107280.0,0.0663]
[1751084178581,1.95629676,107290.0,107280.0,0.0663]
[1751084178924,7.50629676,107290.0,107280.0,0.0663]
[1751084179133,7.45629676,107290.0,107280.0,0.0663]
[1751084179363,7.50629676,107290.0,107280.0,0.0663]
[1751084179576,7.45629676,107290.0,107280.0,0.0663]
[1751084180183,7.50629676,107290.0,107280.0,0.0663]
[1751084181354,7.45629676,107290.0,107280.0,0.0663]
[1751084181800,7.55836013,107290.0,107280.0,0.0663]
[1751084182441,7.50629676,107290.0,107280.0,0.0663]
[1751084182855,7.52083761,107290.0,107280.0,0.0663]
[1751084183056,7.47083761,107290.0,107280.0,0.0356]
[1751084183851,7.4335864,107290.0,107280.0,0.0356]
[1751084186848,7.4335864,107290.0,107280.0,0.0685]
[1751084190740,6.133932,107280.0,107270.0,0.0333]
[1751084190945,7.22089664,107280.0,107270.0,0.0333]
[1751084191353,7.24889664,107280.0,107270.0,0.0333]
[1751084193037,7.24989664,107280.0,107270.0,0.0333]
[1751084193249,7.25089664,107280.0,107270.0,0.0353]
[1751084193763,7.25089664,107280.0,107270.0,0.0669]
[1751084194044,7.24989664,107280.0,107270.0,0.0669]
[1751084194406,7.26199084,107280.0,107270.0,0.0649]
[1751084194613,7.74909084,107280.0,107270.0,0.0659]
[1751084196650,2.19909084,107280.0,107270.0,0.0659]
[1751084197082,7.74909084,107280.0,107270.0,0.0659]
[1751084198206,7.81908815,107280.0,107270.0,0.0659]
[1751084200820,7.85635536,107280.0,107270.0,0.0659]
[1751084206345,7.85635571,107280.0,107270.0,0.0659]
[1751084207679,7.85635571,107280.0,107270.0,0.0343]
[1751084209836,7.66843571,107280.0,107270.0,0.0343]
[1751084210113,7.85635571,107280.0,107270.0,0.0343]
[1751084211228,7.85635571,107280.0,107270.0,0.0014]
[1751084211890,7.66843571,107280.0,107270.0,0.0014]
[1751084212115,7.85635571,107280.0,107270.0,0.0014]
[1751084214300,7.85635571,107280.0,107270.0,0.0334]
[1751084217260,2.30635571,107280.0,107270.0,0.0334]
[1751084217479,7.85635571,107280.0,107270.0,0.0334]
[1751084217682,7.66843571,107280.0,107270.0,0.0334]
[1751084217894,7.85635571,107280.0,107270.0,0.0334]
[1751084220278,7.37125571,107280.0,107270.0,0.0334]
[1751084226996,7.72836829,107280.0,107270.0,0.0014]
[1751084227213,7.75956829,107280.0,107270.0,0.0014]
[1751084227624,7.50975664,107280.0,107270.0,0.0014]
[1751084227851,7.41699656,107280.0,107270.0,0.0014]
[1751084228472,7.4170297,107280.0,107270.0,0.0014]
[1751084235831,1.8670297,107280.0,107270.0,0.0014]
[1751084236045,7.4170297,107280.0,107270.0,0.0014]
[1751084239178,7.50978978,107280.0,107270.0,0.0014]
[1751084239390,6.8833852,107270.0,107260.0,0.0024]
[1751084239609,7.1828676,107270.0,107260.0,0.0024]
[1751084240041,7.2108706,107270.0,107260.0,0.0024]
[1751084240691,7.2118706,107270.0,107260.0,0.00252837]
[1751084240896,7.2128706,107270.0,107260.0,0.00452837]
[1751084247968,7.0630306,107270.0,107260.0,0.00452837]
[1751084248183,6.97317602,107270.0,107260.0,0.06792837]
[1751084249239,6.79979687,107270.0,107260.0,0.06792837]
[1751084249443,6.98771687,107270.0,107260.0,0.06792837]
[1751084253846,6.93953412,107270.0,107260.0,0.06792837]
[1751084255637,0.72552997,107270.0,107260.0,0.06792837]
[1751084255853,0.97534162,107270.0,107260.0,0.06792837]
[1751084256072,1.12518162,107270.0,107260.0,0.06792837]
[1751084256281,1.11863104,107270.0,107260.0,0.06792837]
[1751084257356,1.09626223,107270.0,107260.0,0.06792837]
[1751084261919,0.94642223,107270.0,107260.0,0.06792837]
[1751084262139,1.09622223,107270.0,107260.0,0.06792837]
[1751084266175,0.90834223,107270.0,107260.0,0.06792837]
[1751084266390,1.09622223,107270.0,107260.0,0.06792837]
[1751084270646,0.90834223,107270.0,107260.0,0.06792837]
[1751084270852,1.05814223,107270.0,107260.0,0.06792837]
[1751084271689,0.80833058,107270.0,107260.0,0.06792837]
[1751084271893,1.05814223,107270.0,107260.0,0.06792837]
[1751084274593,0.80833058,107270.0,107260.0,0.06792837]
[1751084278555,0.80833058,107270.0,107260.0,0.07025915]
[1751084280551,0.65853058,107270.0,107260.0,0.07025915]
[1751084280763,0.80833058,107270.0,107260.0,0.3200708]
[1751084280966,0.80833058,107270.0,107260.0,0.31774002]
[1751084281179,0.7155705,107270.0,107260.0,0.31774002]
[1751084287894,0.7155705,107270.0,107260.0,0.06792837]
[1751084288093,0.7155705,107270.0,107260.0,0.3200708]
[1751084288342,0.7155705,107270.0,107260.0,0.31774002]
[1751084290808,0.5657705,107270.0,107260.0,0.31774002]
[1751084291152,0.7155705,107270.0,107260.0,0.31774002]
[1751084291320,0.5657705,107270.0,107260.0,0.31774002]
[1751084291540,0.7155705,107270.0,107260.0,0.31774002]
[1751084291971,0.7155705,107270.0,107260.0,0.06792837]
[1751084292172,0.7155705,107270.0,107260.0,0.07025915]
[1751084292380,0.5657705,107270.0,107260.0,0.07025915]
[1751084292595,0.7155705,107270.0,107260.0,0.07025915]
[1751084293230,0.7155705,107270.0,107260.0,0.06792837]
[1751084293430,0.7155705,107270.0,107260.0,0.03772837]
[1751084293864,0.96538215,107270.0,107260.0,0.03772837]
[1751084294709,0.7155705,107270.0,107260.0,0.03772837]
[1751084294914,0.96538215,107270.0,107260.0,0.03772837]
[1751084299042,0.96538215,107270.0,107260.0,0.04005915]
[1751084307697,0.96538215,107270.0,107260.0,0.03772837]
[1751084308892,0.96538215,107270.0,107260.0,0.04005915]
[1751084310517,0.7155705,107270.0,107260.0,0.04005915]
[1751084310719,0.96538215,107270.0,107260.0,0.04005915]
[1751084315393,0.96538215,107270.0,107260.0,0.00452837]
[1751084318192,0.7155705,107270.0,107260.0,0.00452837]
[1751084320066,0.7155705,107270.0,107260.0,0.00685915]
[1751084321247,0.89764378,107270.0,107260.0,0.00685915]
[1751084324192,0.86964078,107270.0,107260.0,0.00685915]
[1751084324399,0.89763778,107270.0,107260.0,0.00685915]
[1751084325502,0.89763778,107270.0,107260.0,0.03955915]
[1751084325732,0.89663778,107270.0,107260.0,0.03755915]
[1751084325912,0.89763778,107270.0,107260.0,0.04055915]
[1751084326523,0.89663778,107270.0,107260.0,0.04055915]
[1751084326924,0.89763778,107270.0,107260.0,0.04255915]
[1751084327839,0.89763778,107270.0,107260.0,0.00985915]
[1751084328639,0.89763778,107270.0,107260.0,0.00752837]
[1751084329459,0.89763778,107270.0,107260.0,0.00985915]
[1751084332060,0.89763778,107270.0,107260.0,0.00752837]
[1751084337156,0.89763778,107270.0,107260.0,0.00985915]
[1751084337356,0.89763778,107270.0,107260.0,0.00752837]
[1751084342066,0.86964078,107270.0,107260.0,0.00752837]
[1751084351249,0.7527675,107270.0,107260.0,0.00752837]
[1751084351454,0.93484078,107270.0,107260.0,0.00752837]
[1751084369562,0.90214078,107270.0,107260.0,0.00752837]
[1751084370051,0.91961766,107270.0,107260.0,0.00752837]
[1751084376155,0.73754438,107270.0,107260.0,0.00752837]
[1751084376300,0.91961766,107270.0,107260.0,0.00752837]
[1751084378895,0.88711766,107270.0,107260.0,0.00752837]
[1751084384408,0.70504438,107270.0,107260.0,0.00752837]
[1751084384613,0.88711766,107270.0,107260.0,0.00985915]
[1751084386666,0.88711766,107270.0,107260.0,0.00752837]
[1751084386875,0.91791766,107270.0,107260.0,0.00752837]
[1751084390303,0.91791766,107270.0,107260.0,0.00985915]
[1751084394046,0.91791766,107270.0,107260.0,0.00752837]
[1751084397413,0.91791766,107270.0,107260.0,0.00985915]
[1751084399663,0.91791766,107270.0,107260.0,0.00752837]
[1751084399868,0.91791766,107270.0,107260.0,0.00985915]
[1751084400078,0.90044078,107270.0,107260.0,0.00985915]
[1751084401154,0.7183675,107270.0,107260.0,0.00985915]
[1751084401386,0.90044078,107270.0,107260.0,0.00985915]
[1751084401600,0.75064078,107270.0,107260.0,0.00985915]
[1751084401823,0.86964078,107270.0,107260.0,0.00985915]
[1751084410015,0.93324078,107270.0,107260.0,0.00752837]
[1751084421260,0.93324078,107270.0,107260.0,0.00985915]
[1751084422757,0.93324078,107270.0,107260.0,0.00752837]
[1751084424518,0.90164078,107270.0,107260.0,0.00752837]
[1751084435331,0.3606441,107270.0,107260.0,0.22463243]
[1751084435544,0.51040358,107270.0,107260.0,0.63326078]
[1751084435776,0.52904786,107270.0,107260.0,0.64258374]
[1751084435991,0.52904786,107270.0,107260.0,0.46983333]
[1751084436220,0.51872559,107270.0,107260.0,0.46783333]
[1751084436433,0.52804777,107270.0,107260.0,0.47615612]
[1751084436641,0.53004777,107270.0,107260.0,0.47083333]
[1751084437077,0.53004777,107270.0,107260.0,0.49087624]
[1751084437437,0.53004777,107270.0,107260.0,0.48155345]
[1751084438272,0.53004777,107270.0,107260.0,0.49087624]
[1751084438473,0.53004777,107270.0,107260.0,0.48155345]
[1751084438922,0.003,107270.0,107260.0,0.67476677]
[1751084439106,0.01232157,107270.0,107260.0,0.6840893]
[1751084439271,0.02164323,107270.0,107260.0,0.6840893]
[1751084439680,0.003,107270.0,107260.0,0.92660938]
[1751084440466,0.002,107270.0,107260.0,0.92460938]
[1751084441701,0.01864175,107280.0,107270.0,0.27952842]
[1751084441902,0.00932079,107280.0,107270.0,0.4616017]
[1751084442107,0.01864184,107280.0,107270.0,0.46160178]
[1751084442313,0.01864175,107280.0,107270.0,0.47092344]
[1751084442942,0.00932079,107280.0,107270.0,0.47092344]
[1751084443282,0.00932079,107280.0,107270.0,0.47392344]
[1751084443695,0.01864175,107280.0,107270.0,0.47392344]
[1751084445211,0.01964175,107280.0,107270.0,0.47492344]
[1751084446352,0.01964175,107280.0,107270.0,0.46560178]
[1751084446538,0.0289628,107280.0,107270.0,0.46560178]
[1751084447165,0.0289628,107280.0,107270.0,0.45628004]
[1751084447455,0.0289628,107280.0,107270.0,0.46560187]
[1751084448817,0.03828394,107280.0,107270.0,0.46560187]
[1751084450972,0.03828394,107280.0,107270.0,0.45628004]
[1751084451798,0.03828394,107280.0,107270.0,0.44695812]
[1751084452003,0.11760525,107280.0,107270.0,0.45628013]
[1751084453027,0.11760516,107280.0,107270.0,0.46560205]
[1751084453327,0.11760516,107280.0,107270.0,0.45628013]
[1751084453477,0.11760577,107280.0,107270.0,0.45628021]
[1751084454107,0.10828437,107280.0,107270.0,0.46560222]
[1751084456352,0.11760568,107280.0,107270.0,0.46560222]
[1751084456790,0.11760568,107280.0,107270.0,0.45628021]
[1751084456975,0.11760568,107280.0,107270.0,0.46560222]
[1751084457170,0.11760612,107280.0,107270.0,0.44695812]
[1751084457371,0.11760612,107280.0,107270.0,0.45628021]
[1751084457565,0.11760612,107280.0,107270.0,0.44695812]
[1751084458205,0.10828472,107280.0,107270.0,0.45628021]
[1751084459433,0.11760612,107280.0,107270.0,0.45628021]
[1751084459922,0.11760612,107280.0,107270.0,0.44695812]
[1751084460554,0.11760612,107280.0,107270.0,0.41635812]
[1751084461194,0.11760612,107280.0,107270.0,0.42568021]
[1751084461640,0.28539196,107280.0,107270.0,0.40703594]
[1751084462122,0.28539196,107280.0,107270.0,0.41635821]
[1751084463410,0.28539196,107280.0,107270.0,0.42568039]
[1751084466426,0.28539196,107280.0,107270.0,0.43500248]
[1751084467390,0.08964253,107280.0,107270.0,0.42568039]
[1751084468541,0.09896393,107280.0,107270.0,0.43500248]
[1751084468783,0.09896393,107280.0,107270.0,0.42568039]
[1751084470087,0.09896393,107280.0,107270.0,0.43500248]
[1751084471316,0.09896393,107280.0,107270.0,0.42568039]
[1751084471515,0.09896393,107280.0,107270.0,0.43500248]
[1751084474267,0.09896393,107280.0,107270.0,0.44432449]
[1751084474473,0.09896393,107280.0,107270.0,0.43500248]
[1751084474826,0.08964253,107280.0,107270.0,0.44432449]
[1751084477425,0.08964253,107280.0,107270.0,0.43500248]
[1751084477737,0.08964253,107280.0,107270.0,0.44432449]
[1751084477900,0.08964253,107280.0,107270.0,0.45364641]
[1751084478235,0.08964253,107280.0,107270.0,0.44432449]
[1751084481757,0.08964218,107280.0,107270.0,0.44432449]
[1751084482152,0.08964218,107280.0,107270.0,0.45364641]
[1751084483805,0.08964218,107280.0,107270.0,0.44432449]
[1751084484217,0.08964218,107280.0,107270.0,0.45364641]
[1751084485102,0.0989628,107280.0,107270.0,0.44432414]
[1751084485683,0.10828411,107280.0,107270.0,0.43500222]
[1751084486482,0.10828411,107280.0,107270.0,0.44432414]
[1751084487304,0.10828411,107280.0,107270.0,0.43500222]
[1751084487516,0.10828411,107280.0,107270.0,0.44432414]
[1751084487675,0.0989628,107280.0,107270.0,0.44432414]
[1751084487874,0.10828411,107280.0,107270.0,0.44432414]
[1751084488073,0.0989628,107280.0,107270.0,0.44432414]
[1751084491042,0.08964166,107280.0,107270.0,0.45364536]
[1751084491368,0.08964166,107280.0,107270.0,0.4443237]
[1751084491964,0.0989628,107280.0,107270.0,0.4443237]
[1751084492172,0.08964166,107280.0,107270.0,0.4443237]
[1751084492330,0.08964166,107280.0,107270.0,0.43500196]
[1751084492684,0.0989628,107280.0,107270.0,0.45364553]
[1751084492817,0.0989628,107280.0,107270.0,0.44432379]
[1751084493014,0.09896271,107280.0,107270.0,0.41162379]
[1751084493225,0.09896271,107280.0,107270.0,0.56134379]
[1751084493873,0.09896271,107280.0,107270.0,0.57066553]
[1751084494369,0.10828385,107280.0,107270.0,0.56134379]
[1751084494528,0.09896271,107280.0,107270.0,0.57066553]
[1751084495315,0.09896271,107280.0,107270.0,0.42094553]
[1751084495515,0.09896271,107280.0,107270.0,0.56134379]
[1751084496772,0.09896271,107280.0,107270.0,0.57066553]
[1751084499466,0.09896271,107280.0,107270.0,0.56134379]
[1751084499670,0.09896271,107280.0,107270.0,0.57066553]
[1751084499824,0.09896271,107280.0,107270.0,0.56134379]
[1751084500408,0.09896271,107280.0,107270.0,0.57066553]
[1751084501160,0.09896271,107280.0,107270.0,0.56134379]
[1751084501494,0.09896271,107280.0,107270.0,0.57066553]
[1751084501982,0.10828393,107280.0,107270.0,0.55202196]
[1751084503046,0.10828393,107280.0,107270.0,0.56134379]
[1751084503252,0.09896271,107280.0,107270.0,0.56134379]
[1751084503455,0.10828393,107280.0,107270.0,0.56134379]
[1751084504011,0.10828393,107280.0,107270.0,0.40230196]
[1751084505649,0.10828393,107280.0,107270.0,0.41162379]
[1751084505890,0.10828393,107280.0,107270.0,0.40230196]
[1751084507051,0.10828393,107280.0,107270.0,0.41162379]
[1751084507448,0.10828393,107280.0,107270.0,0.40230196]
[1751084507889,0.10828393,107280.0,107270.0,0.41162379]
[1751084508116,0.10828393,107280.0,107270.0,0.40230196]
[1751084509321,0.10828393,107280.0,107270.0,0.41162379]
[1751084509818,0.10828385,107280.0,107270.0,0.41162379]
[1751084511549,0.10828385,107280.0,107270.0,0.40230196]
[1751084511747,0.11760516,107280.0,107270.0,0.40230196]
[1751084512407,0.11760516,107280.0,107270.0,0.39298004]
[1751084513473,0.11760516,107280.0,107270.0,0.40230196]
[1751084514221,0.11760516,107280.0,107270.0,0.39298004]
[1751084514638,0.11760516,107280.0,107270.0,0.40230196]
[1751084516073,0.11760516,107280.0,107270.0,0.39298004]
[1751084516279,0.11760516,107280.0,107270.0,0.40230196]
[1751084517714,0.11760516,107280.0,107270.0,0.39298004]
[1751084517953,0.11760516,107280.0,107270.0,0.40230196]
[1751084518134,0.11760516,107280.0,107270.0,0.39298004]
[1751084520008,0.11760516,107280.0,107270.0,0.21090676]
[1751084520218,0.11760516,107280.0,107270.0,0.39298004]
[1751084520427,0.11760516,107280.0,107270.0,0.40230196]
[1751084520650,0.11760507,107280.0,107270.0,0.40230196]
[1751084522347,0.11760568,107280.0,107270.0,0.39298004]
[1751084522777,0.11760568,107280.0,107270.0,0.40230196]
[1751084522978,0.09896315,107280.0,107270.0,0.41162379]
[1751084523664,0.10828437,107280.0,107270.0,0.40230196]
[1751084524985,0.10828437,107280.0,107270.0,0.39298004]
[1751084525189,0.03828437,107280.0,107270.0,0.39298004]
[1751084526336,0.04760568,107280.0,107270.0,0.39298004]
[1751084527422,0.03828437,107280.0,107270.0,0.40230196]
[1751084527814,0.03828437,107280.0,107270.0,0.39298004]
[1751084528156,0.04760577,107280.0,107270.0,0.39298004]
[1751084528992,0.03828437,107280.0,107270.0,0.39298004]
[1751084529654,0.04760577,107280.0,107270.0,0.39298004]
[1751084529820,0.03828437,107280.0,107270.0,0.39298004]
[1751084530063,0.04760577,107280.0,107270.0,0.39298004]
[1751084530289,0.03828437,107280.0,107270.0,0.39298004]
[1751084530721,0.25771275,107280.0,107270.0,0.38365821]
[1751084530897,0.25771275,107280.0,107270.0,0.39298039]
[1751084531129,0.07128472,107280.0,107270.0,0.40230248]
[1751084531870,0.08060612,107280.0,107270.0,0.40230248]
[1751084532289,0.08060612,107280.0,107270.0,0.2202292]
[1751084532559,0.15060612,107280.0,107270.0,0.40230248]
[1751084532861,0.15060612,107280.0,107270.0,0.41162449]
[1751084533898,0.15060612,107280.0,107270.0,0.40230248]
[1751084534284,0.15060612,107280.0,107270.0,0.21090711]
[1751084534486,0.14128507,107280.0,107270.0,0.40230248]
[1751084534704,0.14128507,107280.0,107270.0,0.41162449]
[1751084538645,0.14128507,107280.0,107270.0,0.40230248]
[1751084538863,0.14128507,107280.0,107270.0,0.41162449]